{"text_format":"3","workbook":"xlsx","n_sheets":3,"sheets":["BeStronger","Sheet1","Sheet2"],"not_rendered":{"external_links":2,"defined_names":2},"read":"whole","date_system":"1900"}

{"sheet":"BeStronger","index":0,"n_rows":127,"n_cols":10,"rows_kept":127}
[null,"Id","Type","Sort","FunctionId","ItemId","DescFirst","DescSecond","Jump","NoUse1"]
[null,"int","int","int","int","mut,int#int,1","string","string","int","string"]
[null,2,2,3,3,3,3,3,3,0]
[null,"id","类型（1.变强；2.资源；3.阵容；4.帮助）","排序","功能id","资源id","一级描述","二级描述（17字以内）","跳转","备注"]
["默认值",{"$nulls":3},0]
["正确性校对"]
["校对值"]
[null,1,1,1,22,null,"神将培养","培养神将是前期提升战力的主要途径",22001,{"$f":"VLOOKUP(I8,[2]JumpConfig!$B:$D,3,FALSE)","v":"成员"}]
[null,2,1,2,null,null,"装备穿戴","穿戴装备可大幅提升玩家战力",22001,{"$f":"VLOOKUP(I9,[2]JumpConfig!$B:$D,3,FALSE)","v":"成员"}]
[null,3,null,3,53,null,"异妖解印","解印异妖可大幅增强玩家战斗力",3001,{"$f":"VLOOKUP(I10,[2]JumpConfig!$B:$D,3,FALSE)","v":"隐妖居"}]
[null,4,null,4,53,null,"天赋升级","升级天赋提升上阵的该职业神将属性",5001,{"$f":"VLOOKUP(I11,[2]JumpConfig!$B:$D,3,FALSE)","v":"天赋树"}]
[null,5,null,5,53,null,"魂印穿戴","穿戴魂印可大幅提升神将战力",1024,{"$f":"VLOOKUP(I12,[2]JumpConfig!$B:$D,3,FALSE)","v":"观星台"}]
[null,6,null,6,53,null,"法宝穿戴","穿戴法宝获得珍贵额外属性和专属技能",1010,{"$f":"VLOOKUP(I13,[2]JumpConfig!$B:$D,3,FALSE)","v":"精英副本"}]
[2,7,null,1,null,16,"妖晶#用于召唤神将，百宝斋购买道具等","充值兑换#充值兑换大量妖晶",27001,{"$f":"VLOOKUP(I14,[2]JumpConfig!$B:$D,3,FALSE)","v":"妖晶商店"}]
[2,8,null,2,null,16,"妖晶#用于召唤神将，百宝斋购买道具等","礼包购买#限购礼包可获取妖晶",36001,{"$f":"VLOOKUP(I15,[2]JumpConfig!$B:$D,3,FALSE)","v":"礼包"}]
[2,9,null,3,null,16,"妖晶#用于召唤神将，百宝斋购买道具等","成长礼金#成长礼金可获得大量妖晶",36003,{"$f":"VLOOKUP(I16,[2]JumpConfig!$B:$D,3,FALSE)","v":"成长礼金"}]
[null,10,2,4,null,16,"妖晶#用于召唤神将，百宝斋购买道具等","每日签到#每日签到有机会获得妖晶",36002,{"$f":"VLOOKUP(I17,[2]JumpConfig!$B:$D,3,FALSE)","v":"每日签到"}]
[null,11,2,5,null,16,"妖晶#用于召唤神将，百宝斋购买道具等","日常任务#完成日常任务领取多重奖励",1004,{"$f":"VLOOKUP(I18,[2]JumpConfig!$B:$D,3,FALSE)","v":"日常任务"}]
[null,12,2,6,null,16,"妖晶#用于召唤神将，百宝斋购买道具等","关卡#通关关卡可获得少量妖晶奖励",26078,{"$f":"VLOOKUP(I19,[2]JumpConfig!$B:$D,3,FALSE)","v":"关卡"}]
[null,13,null,7,null,16,"妖晶#用于召唤神将，百宝斋购买道具等","精英副本#精英副本功绩奖励",1010,{"$f":"VLOOKUP(I20,[2]JumpConfig!$B:$D,3,FALSE)","v":"精英副本"}]
[null,14,2,8,null,16,"妖晶#用于召唤神将，百宝斋购买道具等","竞技场#竞技场每日排名结算奖励",8001,{"$f":"VLOOKUP(I21,[2]JumpConfig!$B:$D,3,FALSE)","v":"竞技场"}]
[null,15,2,9,null,16,"妖晶#用于召唤神将，百宝斋购买道具等","公会商店#公会商店每日免费领取妖晶",20007,{"$f":"VLOOKUP(I22,[2]JumpConfig!$B:$D,3,FALSE)","v":"公会商店"}]
[null,16,null,10,null,16,"妖晶#用于召唤神将，百宝斋购买道具等","心魔试炼#心魔试炼可获得妖晶奖励",1011,{"$f":"VLOOKUP(I23,[2]JumpConfig!$B:$D,3,FALSE)","v":"锁妖塔"}]
[null,17,2,11,null,16,"妖晶#用于召唤神将，百宝斋购买道具等","天宫寻宝#天宫寻宝可获得少量妖晶奖励",60001,{"$f":"VLOOKUP(I24,[2]JumpConfig!$B:$D,3,FALSE)","v":"迷宫寻宝"}]
[null,18,null,12,null,16,"妖晶#用于召唤神将，百宝斋购买道具等","公会战#公会战排名奖励",4001,{"$f":"VLOOKUP(I25,[2]JumpConfig!$B:$D,3,FALSE)","v":"聚义厅"}]
[2,19,null,13,null,14,"金币#用于神将升级、突破等","礼包购买#限购礼包可获取金币",36001,{"$f":"VLOOKUP(I26,[2]JumpConfig!$B:$D,3,FALSE)","v":"礼包"}]
[null,20,2,14,null,14,"金币#用于神将升级、突破等","点金#每日一次免费购买金币的次数",30002,{"$f":"VLOOKUP(I27,[2]JumpConfig!$B:$D,3,FALSE)","v":"金币购买"}]
[null,21,2,15,null,14,"金币#用于神将升级、突破等","关卡#关卡及挂机可获得大量金币",26078,{"$f":"VLOOKUP(I28,[2]JumpConfig!$B:$D,3,FALSE)","v":"关卡"}]
[null,22,null,16,null,14,"金币#用于神将升级、突破等","无尽副本#无尽副本可获得大量金币",46001,{"$f":"VLOOKUP(I29,[2]JumpConfig!$B:$D,3,FALSE)","v":"无尽副本"}]
[null,23,2,17,null,14,"金币#用于神将升级、突破等","心魔试炼#心魔试炼可获得大量金币",1011,{"$f":"VLOOKUP(I30,[2]JumpConfig!$B:$D,3,FALSE)","v":"锁妖塔"}]
[null,24,2,18,null,14,"金币#用于神将升级、突破等","每日签到#每日签到有机会获得金币",36002,{"$f":"VLOOKUP(I31,[2]JumpConfig!$B:$D,3,FALSE)","v":"每日签到"}]
[null,25,2,19,null,14,"金币#用于神将升级、突破等","日常任务#完成日常任务领取多重奖励",1004,{"$f":"VLOOKUP(I32,[2]JumpConfig!$B:$D,3,FALSE)","v":"日常任务"}]
[null,26,null,20,null,14,"金币#用于神将升级、突破等","剧情副本#通关/扫荡剧情副本",1008,{"$f":"VLOOKUP(I33,[2]JumpConfig!$B:$D,3,FALSE)","v":"剧情副本"}]
[null,27,null,21,null,14,"金币#用于神将升级、突破等","试炼副本#试炼副本有概率获得少量金币",30001,{"$f":"VLOOKUP(I34,[2]JumpConfig!$B:$D,3,FALSE)","v":"试炼副本"}]
[null,28,null,22,null,14,"金币#用于神将升级、突破等","精英副本#通关/扫荡精英副本",1010,{"$f":"VLOOKUP(I35,[2]JumpConfig!$B:$D,3,FALSE)","v":"精英副本"}]
[null,29,null,23,null,14,"金币#用于神将升级、突破等","友情商店#友情商店可获得",20005,{"$f":"VLOOKUP(I36,[2]JumpConfig!$B:$D,3,FALSE)","v":"友情商店"}]
[null,30,2,24,null,14,"金币#用于神将升级、突破等","幸运探宝#幸运探宝可以获得",1027,{"$f":"VLOOKUP(I37,[2]JumpConfig!$B:$D,3,FALSE)","v":"幸运探宝"}]
[2,31,null,25,null,3,"成长护符#用于神将升级","礼包购买#限购礼包可获取成长护符",36001,{"$f":"VLOOKUP(I38,[2]JumpConfig!$B:$D,3,FALSE)","v":"礼包"}]
[null,32,2,26,null,3,"成长护符#用于神将升级","关卡#关卡及挂机可获得大量成长护符",26078,{"$f":"VLOOKUP(I39,[2]JumpConfig!$B:$D,3,FALSE)","v":"关卡"}]
[null,33,2,27,null,3,"成长护符#用于神将升级","心魔试炼#心魔试炼可获得大量成长护符",1011,{"$f":"VLOOKUP(I40,[2]JumpConfig!$B:$D,3,FALSE)","v":"锁妖塔"}]
[null,34,2,28,null,3,"成长护符#用于神将升级","日常任务#完成日常任务领取多重奖励",1004,{"$f":"VLOOKUP(I41,[2]JumpConfig!$B:$D,3,FALSE)","v":"日常任务"}]
[null,35,2,29,null,3,"成长护符#用于神将升级","每日签到#每日签到有机会获得成长护符",36002,{"$f":"VLOOKUP(I42,[2]JumpConfig!$B:$D,3,FALSE)","v":"每日签到"}]
[null,36,null,30,null,3,"成长护符#用于神将升级","剧情副本#通关/扫荡剧情副本",1008,{"$f":"VLOOKUP(I43,[2]JumpConfig!$B:$D,3,FALSE)","v":"剧情副本"}]
[null,37,null,31,null,3,"成长护符#用于神将升级","试炼副本#试炼副本有概率获得少量成长护符",30001,{"$f":"VLOOKUP(I44,[2]JumpConfig!$B:$D,3,FALSE)","v":"试炼副本"}]
[null,38,null,32,null,3,"成长护符#用于神将升级","友情商店#友情商店可获得",20005,{"$f":"VLOOKUP(I45,[2]JumpConfig!$B:$D,3,FALSE)","v":"友情商店"}]
[null,39,2,33,null,3,"成长护符#用于神将升级","幸运探宝#幸运探宝可以获得",1027,{"$f":"VLOOKUP(I46,[2]JumpConfig!$B:$D,3,FALSE)","v":"幸运探宝"}]
[2,40,null,34,null,4,"九转金丹#用于神将突破","礼包购买#限购礼包可获取九转金丹",36001,{"$f":"VLOOKUP(I47,[2]JumpConfig!$B:$D,3,FALSE)","v":"礼包"}]
[null,41,null,35,null,4,"九转金丹#用于神将突破","剧情副本#通关/扫荡剧情副本",1008,{"$f":"VLOOKUP(I48,[2]JumpConfig!$B:$D,3,FALSE)","v":"剧情副本"}]
[null,42,2,36,null,4,"九转金丹#用于神将突破","关卡#章节通关奖励中可获得九转金丹",26078,{"$f":"VLOOKUP(I49,[2]JumpConfig!$B:$D,3,FALSE)","v":"关卡"}]
[null,43,null,37,null,4,"九转金丹#用于神将突破","试炼副本#试炼副本有概率获得",30001,{"$f":"VLOOKUP(I50,[2]JumpConfig!$B:$D,3,FALSE)","v":"试炼副本"}]
[null,44,2,38,null,4,"九转金丹#用于神将突破","心魔试炼#通关指定层数",1011,{"$f":"VLOOKUP(I51,[2]JumpConfig!$B:$D,3,FALSE)","v":"锁妖塔"}]
[null,45,2,39,null,4,"九转金丹#用于神将突破","杂货商店#杂货商店有概率刷新出",20003,{"$f":"VLOOKUP(I52,[2]JumpConfig!$B:$D,3,FALSE)","v":"百宝斋"}]
[null,46,null,40,null,4,"九转金丹#用于神将突破","友情商店#友情商店可获得",20005,{"$f":"VLOOKUP(I53,[2]JumpConfig!$B:$D,3,FALSE)","v":"友情商店"}]
[null,47,2,41,null,4,"九转金丹#用于神将突破","高级探宝#高级探宝可以获得",1028,{"$f":"VLOOKUP(I54,[2]JumpConfig!$B:$D,3,FALSE)","v":"高级探宝"}]
[null,48,2,42,null,19,"点将神符#点将台中召唤神将","妖晶购买#花费妖晶购买",1021,{"$f":"VLOOKUP(I55,[2]JumpConfig!$B:$D,3,FALSE)","v":"聚灵神符购买"}]
[null,49,null,43,null,19,"点将神符#点将台中召唤神将神将","成长基金#成长基金赠送超值点将神符",36003,{"$f":"VLOOKUP(I56,[2]JumpConfig!$B:$D,3,FALSE)","v":"成长礼金"}]
[2,50,null,44,null,19,"点将神符#点将台中召唤神将神将","礼包购买#限购礼包获取点将神符",36001,{"$f":"VLOOKUP(I57,[2]JumpConfig!$B:$D,3,FALSE)","v":"礼包"}]
[null,51,null,45,null,19,"点将神符#点将台中召唤神将神将","每日赠送#特权3后每日首次招募免费",1023,{"$f":"VLOOKUP(I58,[2]JumpConfig!$B:$D,3,FALSE)","v":"募英殿"}]
[null,52,null,46,null,19,"点将神符#点将台中召唤神将神将","每日签到#每日签到有机会获得点将神符",36002,{"$f":"VLOOKUP(I59,[2]JumpConfig!$B:$D,3,FALSE)","v":"每日签到"}]
[null,53,2,47,null,19,"点将神符#点将台中召唤神将","关卡#章节通关奖励中可获得点将神符",26078,{"$f":"VLOOKUP(I60,[2]JumpConfig!$B:$D,3,FALSE)","v":"关卡"}]
[null,54,null,48,null,19,"点将神符#点将台中召唤神将神将","试炼副本#试炼副本层数奖励",30001,{"$f":"VLOOKUP(I61,[2]JumpConfig!$B:$D,3,FALSE)","v":"试炼副本"}]
[null,55,null,49,null,19,"点将神符#点将台中召唤神将神将","无尽副本#无尽副本可少量获得",46001,{"$f":"VLOOKUP(I62,[2]JumpConfig!$B:$D,3,FALSE)","v":"无尽副本"}]
[null,56,2,50,null,19,"点将神符#点将台中召唤神将","杂货商店#杂货商店有概率刷新出",20003,{"$f":"VLOOKUP(I63,[2]JumpConfig!$B:$D,3,FALSE)","v":"百宝斋"}]
[null,57,null,51,null,19,"点将神符#点将台中召唤神将神将","友情商店#友情商店可获得",20005,{"$f":"VLOOKUP(I64,[2]JumpConfig!$B:$D,3,FALSE)","v":"友情商店"}]
[null,58,2,52,null,19,"点将神符#点将台中召唤神将","天宫寻宝#天宫寻宝可获得点将神符",60001,{"$f":"VLOOKUP(I65,[2]JumpConfig!$B:$D,3,FALSE)","v":"迷宫寻宝"}]
[2,59,null,53,null,20,"唤元神符#四元阵中召唤神将神将","礼包购买#限购礼包获取唤元神符",36001,{"$f":"VLOOKUP(I66,[2]JumpConfig!$B:$D,3,FALSE)","v":"礼包"}]
[null,60,null,54,null,20,"唤元神符#四元阵中召唤神将神将","关卡#章节通关奖励中可获得",26078,{"$f":"VLOOKUP(I67,[2]JumpConfig!$B:$D,3,FALSE)","v":"关卡"}]
[null,61,null,55,null,20,"唤元神符#四元阵中召唤神将神将","试炼副本#试炼副本层数奖励",30001,{"$f":"VLOOKUP(I68,[2]JumpConfig!$B:$D,3,FALSE)","v":"试炼副本"}]
[null,62,null,56,null,20,"唤元神符#四元阵中召唤神将神将","无尽副本#无尽副本可少量获得",46001,{"$f":"VLOOKUP(I69,[2]JumpConfig!$B:$D,3,FALSE)","v":"无尽副本"}]
[null,63,2,57,null,20,"唤元神符#四元阵中召唤神将","高级探宝#高级探宝可以获得",1028,{"$f":"VLOOKUP(I70,[2]JumpConfig!$B:$D,3,FALSE)","v":"高级探宝"}]
[null,64,null,58,null,21,"妖魂魔符#秘宝轩中抽取异妖妖魂","妖晶购买#花费妖晶购买",1020,{"$f":"VLOOKUP(I71,[2]JumpConfig!$B:$D,3,FALSE)","v":"妖魂魔符购买"}]
[null,65,null,59,null,21,"妖魂魔符#秘宝轩中抽取异妖妖魂","礼包购买#限购礼包获取妖魂魔符",36001,{"$f":"VLOOKUP(I72,[2]JumpConfig!$B:$D,3,FALSE)","v":"礼包"}]
[null,66,null,60,null,21,"妖魂魔符#秘宝轩中抽取异妖妖魂","每日赠送#特权2后每日首次抽取免费",21001,{"$f":"VLOOKUP(I73,[2]JumpConfig!$B:$D,3,FALSE)","v":"秘宝轩"}]
[null,67,null,61,null,21,"妖魂魔符#秘宝轩中抽取异妖妖魂","每日签到#每日签到有机会获得妖魂魔符",36002,{"$f":"VLOOKUP(I74,[2]JumpConfig!$B:$D,3,FALSE)","v":"每日签到"}]
[null,68,null,62,null,21,"妖魂魔符#秘宝轩中抽取异妖妖魂","日常任务#完成所有日常任务赠送",1004,{"$f":"VLOOKUP(I75,[2]JumpConfig!$B:$D,3,FALSE)","v":"日常任务"}]
[null,69,null,63,null,21,"妖魂魔符#秘宝轩中抽取异妖妖魂","无尽副本#无尽副本可少量获得",46001,{"$f":"VLOOKUP(I76,[2]JumpConfig!$B:$D,3,FALSE)","v":"无尽副本"}]
[null,70,null,64,null,21,"妖魂魔符#秘宝轩中抽取异妖妖魂","友情商店#友情商店可获得",20005,{"$f":"VLOOKUP(I77,[2]JumpConfig!$B:$D,3,FALSE)","v":"友情商店"}]
[null,71,null,65,null,21,"妖魂魔符#秘宝轩中抽取异妖妖魂","幸运探宝#幸运探宝可以获得",1027,{"$f":"VLOOKUP(I78,[2]JumpConfig!$B:$D,3,FALSE)","v":"幸运探宝"}]
[null,72,null,66,null,21,"妖魂魔符#秘宝轩中抽取异妖妖魂","迷宫寻宝#迷宫寻宝可获得妖魂魔符",60001,{"$f":"VLOOKUP(I79,[2]JumpConfig!$B:$D,3,FALSE)","v":"迷宫寻宝"}]
[null,73,2,67,null,23,"挑战券#竞技场挑战门票","妖晶购买#花费妖晶购买",1022,{"$f":"VLOOKUP(I80,[2]JumpConfig!$B:$D,3,FALSE)","v":"挑战券购买"}]
[null,74,2,68,null,23,"挑战券#竞技场挑战门票","日常任务#日常任务宝箱奖励",1004,{"$f":"VLOOKUP(I81,[2]JumpConfig!$B:$D,3,FALSE)","v":"日常任务"}]
[null,75,2,69,null,23,"挑战券#竞技场挑战门票","天宫寻宝#天宫寻宝可获得",60001,{"$f":"VLOOKUP(I82,[2]JumpConfig!$B:$D,3,FALSE)","v":"迷宫寻宝"}]
[null,76,null,70,null,6033,"异妖妖魂#解印异妖，异妖升阶消耗","礼包购买#限购礼包获取异妖妖魂",36001,{"$f":"VLOOKUP(I83,[2]JumpConfig!$B:$D,3,FALSE)","v":"礼包"}]
[null,77,null,71,null,6033,"异妖妖魂#解印异妖，异妖升阶消耗","秘宝轩招募#秘宝轩招募",21001,{"$f":"VLOOKUP(I84,[2]JumpConfig!$B:$D,3,FALSE)","v":"秘宝轩"}]
[null,78,null,72,null,6033,"异妖妖魂#解印异妖，异妖升阶消耗","无尽副本#无尽副本可获得异妖妖魂",46001,{"$f":"VLOOKUP(I85,[2]JumpConfig!$B:$D,3,FALSE)","v":"无尽副本"}]
[null,79,null,73,null,6033,"异妖妖魂#解印异妖，异妖升阶消耗","友情商店#友情商店可获得",20005,{"$f":"VLOOKUP(I86,[2]JumpConfig!$B:$D,3,FALSE)","v":"友情商店"}]
[null,80,null,74,null,6033,"异妖妖魂#解印异妖，异妖升阶消耗","秘宝商店#秘宝商店可获得",20009,{"$f":"VLOOKUP(I87,[2]JumpConfig!$B:$D,3,FALSE)","v":"秘宝商店"}]
[null,81,null,75,null,5,"灵丹#异妖升阶消耗的道具","竞技场#竞技场排名奖励",8001,{"$f":"VLOOKUP(I88,[2]JumpConfig!$B:$D,3,FALSE)","v":"竞技场"}]
[null,82,null,76,null,5,"灵丹#异妖升阶消耗的道具","杂货商店#杂货商店有概率刷新出",20003,{"$f":"VLOOKUP(I89,[2]JumpConfig!$B:$D,3,FALSE)","v":"百宝斋"}]
[null,83,null,77,null,5,"灵丹#异妖升阶消耗的道具","友情商店#友情商店可获得",20005,{"$f":"VLOOKUP(I90,[2]JumpConfig!$B:$D,3,FALSE)","v":"友情商店"}]
[null,84,null,78,null,5,"灵丹#异妖升阶消耗的道具","幸运探宝#幸运探宝可以获得",1027,{"$f":"VLOOKUP(I91,[2]JumpConfig!$B:$D,3,FALSE)","v":"幸运探宝"}]
[null,85,null,79,null,6,"归元髓液#异妖升阶消耗的道具","杂货商店#杂货商店有概率刷新出归元髓液",20003,{"$f":"VLOOKUP(I92,[2]JumpConfig!$B:$D,3,FALSE)","v":"百宝斋"}]
[null,86,null,80,null,6,"归元髓液#异妖升阶消耗的道具","高级探宝#高级探宝可以获得",1028,{"$f":"VLOOKUP(I93,[2]JumpConfig!$B:$D,3,FALSE)","v":"高级探宝"}]
[null,87,2,81,null,1511,"装备#用于神将穿戴，提升战力","关卡#关卡挂机可获得大量装备",26082,{"$f":"VLOOKUP(I94,[2]JumpConfig!$B:$D,3,FALSE)","v":"关卡"}]
[null,88,null,82,null,1511,"装备#用于神将穿戴，提升战力","幸运探宝#幸运探宝可以获得",1027,{"$f":"VLOOKUP(I95,[2]JumpConfig!$B:$D,3,FALSE)","v":"幸运探宝"}]
[null,89,null,83,null,90001,"法宝#穿戴法宝，提升神将战力","精英副本#通关/扫荡精英副本",1010,{"$f":"VLOOKUP(I96,[2]JumpConfig!$B:$D,3,FALSE)","v":"精英副本"}]
[null,90,null,84,null,5000058,"魂印#穿戴魂印，提升神将战力","观星台#观星台可获得大量魂印",1024,{"$f":"VLOOKUP(I97,[2]JumpConfig!$B:$D,3,FALSE)","v":"观星台"}]
[2,91,null,85,null,12013,"神将碎片#合成神将","礼包购买#限购礼包获得神将碎片",36001,{"$f":"VLOOKUP(I98,[2]JumpConfig!$B:$D,3,FALSE)","v":"礼包"}]
[null,92,2,86,null,12013,"神将碎片#合成神将","四元阵#神将招募",1002,{"$f":"VLOOKUP(I99,[2]JumpConfig!$B:$D,3,FALSE)","v":"六灵阁"}]
[null,93,2,87,null,12013,"神将碎片#合成神将","每日签到#每日签到",36002,{"$f":"VLOOKUP(I100,[2]JumpConfig!$B:$D,3,FALSE)","v":"每日签到"}]
[null,94,null,88,null,12013,"神将碎片#合成神将","剧情副本#通关/扫荡剧情副本",1008,{"$f":"VLOOKUP(I101,[2]JumpConfig!$B:$D,3,FALSE)","v":"剧情副本"}]
[null,95,null,89,null,12013,"神将碎片#合成神将","精英副本#精英副本功绩奖励",1010,{"$f":"VLOOKUP(I102,[2]JumpConfig!$B:$D,3,FALSE)","v":"精英副本"}]
[null,96,null,90,null,12013,"神将碎片#合成神将","试炼副本#试炼副本通关奖励",30001,{"$f":"VLOOKUP(I103,[2]JumpConfig!$B:$D,3,FALSE)","v":"试炼副本"}]
[null,97,2,91,null,12013,"神将碎片#合成神将","心魔试炼#心魔试炼挑战",1011,{"$f":"VLOOKUP(I104,[2]JumpConfig!$B:$D,3,FALSE)","v":"锁妖塔"}]
[null,98,null,92,null,12013,"神将碎片#合成神将","友情商店#友情商店可获得",20005,{"$f":"VLOOKUP(I105,[2]JumpConfig!$B:$D,3,FALSE)","v":"友情商店"}]
[null,99,2,93,null,12013,"神将碎片#合成神将","竞技场商店#竞技场商店可获得",20002,{"$f":"VLOOKUP(I106,[2]JumpConfig!$B:$D,3,FALSE)","v":"竞技场商店"}]
[null,100,2,94,null,12013,"神将碎片#合成神将","杂货商店#杂货商店有概率刷新",20003,{"$f":"VLOOKUP(I107,[2]JumpConfig!$B:$D,3,FALSE)","v":"百宝斋"}]
[null,101,2,95,null,12013,"神将碎片#合成神将","元神商店#元神商店可以获得",20008,{"$f":"VLOOKUP(I108,[2]JumpConfig!$B:$D,3,FALSE)","v":"混沌商店"}]
[null,102,null,96,null,12013,"神将碎片#合成神将","无尽副本#无尽商店可以获得",46001,{"$f":"VLOOKUP(I109,[2]JumpConfig!$B:$D,3,FALSE)","v":"无尽副本"}]
[null,103,null,1,null,"10003#10017#10009#10018#10019","新手推荐","黄飞虎，郭嘉#黄飞虎使用嘲讽技能的吸引敌方火力，被动的减伤技能使其拥有不俗的生存能力；何仙姑拥有不错的单体治疗能力；郭嘉的护盾配合织女的减少攻击能够增加我方存活率；一旦过渡到后期，夜叉强大的输出使得对方毫无还手之力。"]
[null,104,null,2,null,"10011#10015#10008#10023#10018","前期最强","姬发，杨戬#孙权通过消耗自身生命可以造成巨大的伤害，配合何仙姑的高额治疗，可以快速减少敌方血量；杨戬和敖丙可以对对位敌人造成巨量伤害，姬发可以快速收割敌方残血神将，并对其他敌人造成额外伤害。"]
[null,105,null,3,null,"10014#10013#10009#10022#10006","后期最强","雷震子，夜叉#张飞和小乔可以造成大量群体伤害，黄天化、雷震子和夜叉经过战斗前中期状态的积累，每次绝技都能造成毁天灭地的效果。"]
[null,106,3,4,null,"10023#10022#10007#10012#10015","佛系最强","孙悟空，降龙罗汉#佛系神将拥有极高的输出能力，通过暴力的输出来快速解决敌人，以孙悟空为核心输出，降龙罗汉辅助输出，配合其他角色辅助治疗控制，平稳输出。"]
[null,107,3,5,null,"10090#10041#10026#10019#10042","道系最强","通天教主，东华帝君#通天教主、东华帝君为主要输出，配合阎罗王伤害传导，巨灵神抗伤，九天玄女辅助快速结束战斗。"]
[null,108,3,6,null,"10002#10003#10018#10011#10006","妖系最强","雷震子#妖系神将可以通过技能效果快速的回复怒气，从而实现技能的连续释放。通过治疗减伤和肉盾的配合，保障输出生存。以雷震子为核心对敌人造成巨额伤害，洛神协助输出，猪八戒作为肉盾抵挡伤害，九命猫、共工提供治疗、无敌盾、光环等辅助，实现续航永动。"]
[null,109,3,7,null,"10009#10087#10016#10001#10004","人系最强","娥皇，蚩尤#人系神将具有强大的灼烧能力，并且对处于灼烧状态的敌人有大量输出加成。围绕灼烧神将的能力进行搭配，利用灼烧后的巨量伤害加成，最大化发挥灼烧队伍的优势。娥皇为核心配合嫦娥和伏羲输出，蚩尤肉盾抗伤龙吉公主和慈航道人辅助治疗，能力综合平稳输出。"]
[null,110,4,1,null,null,"如何选择上阵神将？","注意技能搭配：#某些神将的技能相互配合使用，可以发挥更大的效果，一加一或许要远大于二。#注意元素搭配：#同阵营的神将上阵会得到额外的属性加成，绝对不能忽视。"]
[null,111,null,2,null,null,"不同时期神将各有什么特点？","神将定位：#前期神将普技较强，多以单体爆发为主；后期神将绝技较强，多以群体伤害或控制为主；全期神将普技和绝技相对中庸，但没有明显短板，可以适应各种战斗环境。"]
[null,112,null,3,null,null,"如何利用不同时期的神将战斗？","抓住阵容的优劣势：#前期阵容可以在战斗前中期造成巨大伤害，快速结束战斗，但一旦进入后期就会开始乏力，可以适当加入后期神将弥补；后期阵容在战斗后期拥有绝对的统治力，但很难撑过战斗的前中期，可以通过前期辅助神将提高在战斗前中期的存活率。"]
[null,113,null,4,null,null,"战斗位中站位有何意义？","角色站位：#某些神将可以对对位敌人造成高额伤害，某些神将可以为自身和相邻队友提供支援，调整站位可以发挥神将的最大能力。"]
[null,114,null,5,null,null,"如何提升神将的等级和星级？","神将升级进阶：#提升星级和等级可以大幅提升神将的属性和技能。点击成员按钮进入神将列表，点击列表中你想提升的神将，根据下方的升级和进阶提示，准备好足够的提升材料就可以啦！"]
[null,115,null,6,null,null,"如何快速的获得资源？","每日签到：#每日签到奖励的领取必不可少。#关卡：#通关关卡及挂机中可获得大量成长资源。#副本：#试炼副本，剧情副本，精英副本，无尽副本中都拥有大量资源产出。#试练塔：#参与挑战试练塔活动也能获得丰富的奖励。#各种活动：#活动中有大量珍贵资源，机不可失哦！"]
[null,116,null,7,null,null,"战斗中神将的出手顺序是怎样的？","神将战斗顺序：#战斗开始后，会根据上阵神将的速度高低，决定出手的先后顺序，某些减速控制技能会影响神将的行动速度。"]
[null,117,null,8,null,null,"异妖如何获得？","激活异妖：#集齐特定异妖的妖魂后，可以将该异妖激活。异妖的妖魂可以通过充值、商店、秘宝轩招募以及各种限时活动等方式获得。"]
[null,118,null,9,null,null,"竞技场阵容如何搭配？","竞技场阵容搭配：#竞技场阵容分为进攻阵容和防守阵容。防守阵容需要提前配置，受到其他玩家攻击时自动战斗。进攻阵容由玩家实时配置，自动战斗。"]
[null,119,null,10,null,null,"特权等级有什么作用？","特权等级：#提升特权等级并开通豪华月卡可以领取奖励丰富的每日礼包。提升特权等级将会带来游戏中一系列的特权增益，好处多多，如：增加部分游戏玩法的每日可玩次数，增加道具的每日购买次数等。"]
[null,120,4,11,null,null,"如何提升玩家等级？","关卡：#挑战关卡获得经验提升玩家等级。#挂机：#挂机可获得大量经验。#极速探索：#极速探索可立即获得大量经验。"]

{"sheet":"Sheet1","index":1,"n_rows":13,"n_cols":12,"rows_kept":13}
{"$rows_empty":8}
["新手",10003,10005,10021,10016,10007,"叶辽","兰卿","清然","枫元正","应茹",{"$f":"_xlfn.TEXTJOIN(\"#\",TRUE,B9:F9)","v":"10003#10005#10021#10016#10007"}]
["风",10002,10004,10008,10019,10022,"石御霏","孔谦","颜无雍","云","云灵","10002#10004#10008#10019#10022"]
["地",10003,10005,10011,10013,10018,"叶辽","兰卿","尹正霄","白梦凡","紫苏","10003#10005#10011#10013#10018"]
["水火",10001,10012,10006,10010,10020,"夏侯鸿天","慕容子期","朱贺","颜祈佳","司空染","10001#10012#10006#10010#10020"]
["光暗",10009,10014,10017,10015,10023,"祁菲","颜无诡","解幽","凝儿","荧荧","10009#10014#10017#10015#10023"]

{"sheet":"Sheet2","index":2,"n_rows":0,"n_cols":0,"rows_kept":0}